bitfinex/quotes_ETHUSD_20240924
["timestamp","ask_amount","ask_price","bid_price","bid_amount"]
[1727163549035,0.79259894,2645.8,2645.5,3.77999]
[1727163549436,1.57289894,2645.9,2645.5,3.77999]
[1727163550731,5.35237894,2645.9,2645.4,3.78014]
[1727163550969,1.57289894,2645.9,2645.4,3.78014]
[1727163551163,5.35235894,2645.9,2645.4,3.78014]
[1727163552069,1.57289894,2645.9,2645.5,3.77998]
[1727163552289,1.57289894,2645.9,2645.5,7.5599]
[1727163552955,1.57289894,2645.9,2645.5,3.77992]
[1727163554671,1.57289894,2645.9,2645.5,7.55985]
[1727163556876,1.57289894,2645.9,2645.5,3.77992]
[1727163557189,1.57289894,2645.9,2645.5,7.55982]
[1727163558574,1.57289894,2645.9,2645.5,3.7799]
[1727163558764,1.57289894,2645.9,2645.6,3.77984]
[1727163561063,0.7803,2645.8,2645.5,3.77991]
[1727163561435,1.57289894,2645.8,2645.5,3.77991]
[1727163563252,0.79259894,2645.7,2645.5,3.77991]
[1727163566184,0.79259894,2645.7,2645.5,7.55982]
[1727163566480,0.79259894,2645.7,2645.6,3.77986]
[1727163566665,0.79259894,2645.8,2645.7,3.77971]
[1727163566974,1.18809086,2646.0,2645.8,3.77957]
[1727163567142,0.79193603,2645.9,2645.8,3.77957]
[1727163567480,1.18809086,2645.9,2645.8,3.77957]
[1727163570946,1.58741664,2646.0,2645.8,3.77957]
[1727163572568,1.98065354,2646.1,2645.8,3.77957]
[1727163573280,1.98065354,2646.1,2645.8,7.55906]
[1727163573583,1.98065354,2646.1,2645.8,3.77949]
[1727163575047,1.98065354,2646.1,2645.8,4.55177]
[1727163578172,0.7803,2646.2,2645.8,4.55177]
[1727163579574,0.7803,2646.2,2645.8,8.33127]
[1727163579968,1.98563257,2645.9,2645.8,4.55177]
[1727163582782,1.98563257,2646.0,2645.8,4.55177]
[1727163583386,1.98563257,2645.9,2645.8,4.55177]
[1727163583599,1.98551164,2645.9,2645.8,4.55177]
[1727163588789,3.16291397,2646.2,2645.8,4.55177]
[1727163588790,1.98551164,2646.0,2645.8,4.55177]
[1727163589507,1.58836392,2645.9,2645.8,4.55177]
[1727163589816,1.98551164,2645.9,2645.7,3.77968]
[1727163589985,1.5883891,2645.8,2645.7,3.77968]
[1727163594491,1.5883891,2645.8,2645.6,3.77972]
[1727163594700,1.5883891,2645.7,2645.6,3.77972]
[1727163598593,1.5883891,2645.7,2645.5,3.77999]
[1727163598795,1.5883891,2645.6,2645.4,3.78008]
[1727163599000,1.19149105,2645.5,2645.4,3.78008]
[1727163599195,1.19149105,2645.5,2645.3,3.8182944]
[1727163599196,1.5883891,2645.5,2645.3,7.5984944]
[1727163599439,1.19152553,2645.4,2645.3,7.5984944]
[1727163599722,1.19151746,2645.4,2645.3,7.5984944]
[1727163600735,1.19151746,2645.4,2645.3,3.8182944]
[1727163601084,1.19151746,2645.4,2645.3,0.0381144]
[1727163601285,1.98573079,2645.5,2645.3,0.0381144]
[1727163601490,4.54024,2645.4,2645.3,0.0381144]
[1727163601991,3.14328489,2645.4,2645.3,0.0381144]
[1727163602193,6.92342489,2645.4,2645.3,0.0381144]
[1727163602409,4.54024,2645.4,2645.3,0.0381144]
[1727163602609,6.92342489,2645.4,2645.3,0.0381144]
[1727163602824,4.54024,2645.4,2645.3,0.0381144]
[1727163603399,7.54024,2645.4,2645.3,0.0381144]
[1727163604486,10.31640992,2645.4,2645.3,0.0381144]
[1727163604804,7.54024,2645.4,2645.3,0.0381144]
[1727163605004,10.31643341,2645.4,2645.3,0.0381144]
[1727163605328,7.54024,2645.4,2645.3,0.0381144]
[1727163605492,10.31478766,2645.4,2645.3,0.0381144]
[1727163606399,10.31481324,2645.4,2645.3,0.0381144]
[1727163606606,7.54024,2645.4,2645.3,0.0381144]
[1727163608817,9.91536371,2645.4,2645.3,0.0381144]
[1727163609134,7.54024,2645.4,2645.3,0.0381144]
[1727163609703,9.9046136,2645.4,2645.3,0.0381144]
[1727163610505,7.53024,2645.4,2645.3,0.0381144]
[1727163613726,3.7806,2645.1,2644.7,0.8049]
[1727163613916,0.7908932,2644.9,2644.7,0.8049]
[1727163614115,0.7908932,2645.0,2644.7,0.8049]
[1727163615024,0.7908932,2644.9,2644.7,0.8049]
[1727163615822,0.7908932,2645.0,2644.6,3.8193044]
[1727163616023,0.7908932,2645.0,2644.8,0.7813]
[1727163616654,4.5716132,2645.0,2644.6,4.6006044]
[1727163616961,0.7908932,2645.0,2644.6,4.6006044]
[1727163617926,0.7908932,2645.0,2644.6,8.3818144]
[1727163618130,0.7908932,2645.0,2644.6,5.58327302]
[1727163618450,0.7908932,2645.0,2644.7,3.78113]
[1727163618848,0.7908932,2645.1,2644.7,3.78113]
[1727163620862,0.7908932,2645.1,2644.8,0.7813]
[1727163622064,0.7908932,2645.2,2645.1,4.56187]
[1727163622276,1.6482254,2645.3,2645.1,5.16254418]
[1727163622277,0.4618856,2645.3,2645.1,5.16254418]
[1727163623162,0.4618856,2645.3,2645.1,1.38197418]
[1727163623477,0.4618856,2645.3,2645.1,0.60067418]
[1727163623782,0.4618856,2645.3,2645.0,3.78068]
[1727163624073,1.2527788,2645.3,2645.0,3.78068]
[1727163624278,0.4618856,2645.3,2645.0,3.78068]
[1727163624575,1.2527788,2645.3,2645.0,3.78068]
[1727163625071,1.2527788,2645.3,2644.9,4.56214]
[1727163625238,2.0417788,2645.3,2644.9,5.54093218]
[1727163628560,2.0417788,2645.3,2644.9,5.54091218]
[1727163629271,5.8220688,2645.3,2644.7,0.7813]
[1727163629481,0.7908932,2645.1,2644.7,0.7813]
[1727163629777,4.5714932,2645.1,2644.7,0.7813]
[1727163629937,4.5714932,2645.1,2644.6,0.0381144]
[1727163629938,0.7908932,2644.9,2644.6,0.0381144]
[1727163630337,0.7908932,2644.9,2644.6,3.8193244]
[1727163630681,0.7908932,2644.9,2644.8,4.6086]
[1727163631563,0.7908932,2645.1,2644.8,4.6086]
[1727163632067,0.7908932,2645.1,2644.8,0.8276]
[1727163632274,0.7908932,2645.1,2644.9,3.78086]
[1727163632447,0.7908932,2645.1,2644.9,3.78077]
[1727163632645,0.7908932,2645.1,2644.9,4.619711]
[1727163633035,0.7908932,2645.1,2645.0,3.78071]
[1727163633766,0.7908932,2645.1,2645.0,4.60831]
[1727163634066,0.7908932,2645.1,2645.0,6.05318182]
[1727163634240,0.7908932,2645.1,2645.0,6.12879004]
[1727163634437,0.7908932,2645.1,2645.0,7.12803192]
[1727163635070,0.4618856,2645.3,2645.2,3.78043]
[1727163640183,0.4618856,2645.3,2645.2,6.05290182]
[1727163640510,0.4618856,2645.3,2645.2,6.1285028]
[1727163640678,0.4618856,2645.3,2645.2,6.12850255]
[1727163640874,0.4618856,2645.3,2645.2,7.15129209]
[1727163641970,0.4618856,2645.3,2645.2,7.22689283]
[1727163642346,0.4618856,2645.3,2645.2,7.15129209]
[1727163643481,0.4618856,2645.3,2645.2,5.70642027]
[1727163646199,0.4618856,2645.3,2644.9,4.54126]
[1727163646481,0.4618856,2645.3,2645.1,3.78056]
[1727163646989,1.18911258,2645.2,2645.1,3.78056]
[1727163647888,1.18911258,2645.2,2644.9,4.54122]
[1727163648088,0.79279014,2645.1,2645.0,3.78068]
[1727163648251,0.79279014,2645.1,2645.0,6.202229]
[1727163648458,1.25467574,2645.3,2645.1,3.78057]
[1727163648680,1.25467574,2645.3,2645.2,5.22530182]
[1727163648994,1.25467574,2645.3,2645.2,3.78043]
[1727163653396,0.4618856,2645.3,2645.2,3.78043]
[1727163653600,1.254645,2645.3,2645.2,3.78043]
[1727163654075,0.4618856,2645.3,2645.2,3.78043]
[1727163655190,1.25469435,2645.3,2645.2,3.78043]
[1727163655367,1.65099818,2645.3,2645.2,3.78043]
[1727163655789,0.4618856,2645.3,2645.2,3.78043]
[1727163655987,1.2547577,2645.3,2645.2,3.78043]
[1727163656374,0.4618856,2645.3,2645.2,3.78043]
[1727163656700,1.254815,2645.3,2645.2,3.78043]
[1727163656907,1.65099818,2645.3,2645.2,3.78043]
[1727163657365,1.65099818,2645.3,2645.1,3.78056]
[1727163657712,1.18911258,2645.2,2645.1,3.78056]
[1727163659002,1.65099818,2645.3,2645.2,3.78043]
[1727163661083,1.65099818,2645.3,2645.2,4.58973]
[1727163661284,1.25504351,2645.3,2645.2,4.58973]
[1727163661505,0.4618856,2645.3,2645.2,4.58973]
[1727163662012,1.65099818,2645.3,2645.2,4.58973]
[1727163662307,1.65099818,2645.3,2645.2,5.62159109]
[1727163666278,1.65248132,2645.3,2645.2,5.62159109]
[1727163666482,2.04736904,2645.3,2645.2,5.62159109]
[1727163666777,0.4618856,2645.3,2645.2,5.62159109]
[1727163667489,2.04736904,2645.3,2645.2,5.62159109]
[1727163671305,2.04736904,2645.3,2645.2,4.58973]
[1727163671724,2.04736904,2645.3,2645.2,3.78043]
[1727163673127,2.44717895,2645.3,2645.2,3.78043]
[1727163674886,2.44863268,2645.3,2645.2,3.78043]
[1727163675919,2.44863268,2645.3,2645.2,5.13973]
[1727163676224,1.65395995,2645.3,2645.2,6.25590069]
[1727163676400,1.65395995,2645.3,2645.2,6.18029789]
[1727163676926,1.65395995,2645.3,2645.2,6.57098369]
[1727163677619,1.65395995,2645.3,2645.2,6.96178034]
[1727163677823,1.65395995,2645.3,2645.2,6.57109454]
[1727163682600,1.65395995,2645.3,2645.2,6.02109454]
[1727163682805,0.4618856,2645.3,2645.2,4.98052665]
[1727163683066,2.05145765,2645.3,2645.2,4.17122665]
[1727163683344,2.44837358,2645.3,2645.2,4.17122665]
[1727163683647,0.4618856,2645.3,2645.2,3.78043]
[1727163683944,2.44837358,2645.3,2645.2,3.78043]
[1727163684442,2.44826931,2645.3,2645.2,3.78043]
[1727163686848,0.4618856,2645.3,2645.1,3.7805]
[1727163687010,1.986559,2645.2,2645.1,3.7805]
[1727163687634,1.986559,2645.2,2645.0,3.8187]
[1727163687842,1.58918307,2645.1,2645.0,3.8187]
[1727163688147,1.986559,2645.2,2645.0,3.8187]
[1727163689221,1.98636953,2645.2,2645.0,3.8187]
[1727163689829,1.58906009,2645.1,2645.0,3.81863]
[1727163690547,1.98636953,2645.2,2645.0,0.038]
[1727163690754,1.98636953,2645.2,2645.1,3.78057]
[1727163691169,2.44825513,2645.3,2645.1,2.2528889]
[1727163691456,0.4618856,2645.3,2645.2,3.78043]
[1727163691813,2.44808093,2645.3,2645.2,3.78043]
[1727163692258,0.4618856,2645.3,2645.2,3.78043]
[1727163692748,0.4618856,2645.3,2645.1,3.78057]
[1727163692920,1.98621731,2645.2,2645.1,3.78057]
[1727163694140,1.98627473,2645.2,2645.1,3.78057]
[1727163696440,0.4618856,2645.3,2645.1,3.78057]
[1727163697078,1.98618649,2645.2,2645.1,3.78057]
[1727163697981,1.98618649,2645.2,2645.1,5.2279589]
[1727163698135,1.98618649,2645.2,2645.1,6.13262479]
[1727163698343,0.4618856,2645.3,2645.2,3.78043]
[1727163708379,2.44786922,2645.3,2645.2,3.78043]
[1727163710090,2.44786922,2645.3,2645.1,3.78052]
[1727163710303,1.58879403,2645.2,2645.1,3.78052]
[1727163710509,1.98598362,2645.2,2645.1,3.78052]
[1727163714912,1.98593838,2645.2,2645.1,3.78052]
[1727163718231,2.75243838,2645.2,2645.0,0.038]
[1727163718402,1.58867394,2645.1,2645.0,0.038]
[1727163718593,2.75243838,2645.2,2645.0,0.038]
[1727163719497,2.75243838,2645.2,2645.0,3.8187]
[1727163719698,1.58864686,2645.1,2645.0,3.8187]
[1727163720639,2.75243838,2645.2,2645.0,3.8187]
[1727163721138,1.58861176,2645.1,2645.0,3.8187]
[1727163721436,1.58861176,2645.1,2645.0,4.72337989]
[1727163723237,1.58861176,2645.1,2645.0,3.8187]
[1727163726130,1.98587733,2645.2,2645.0,3.8187]
[1727163726337,1.98587733,2645.2,2645.1,3.78057]
[1727163727199,0.4618856,2645.3,2645.1,3.78057]
[1727163729015,0.4618856,2645.3,2645.1,3.78048]
[1727163730767,0.8141,2645.2,2645.0,0.038]
[1727163731073,1.98759583,2645.1,2645.0,0.038]
[1727163731763,1.98759583,2645.1,2645.0,3.81871]
[1727163731972,2.8449384,2645.3,2645.1,3.78057]
[1727163732556,2.8449384,2645.3,2645.0,3.81871]
[1727163732768,1.98773401,2645.1,2645.0,7.59935]
[1727163733060,1.98773875,2645.1,2645.0,4.72331389]
[1727163735857,1.98773875,2645.1,2645.0,5.52751389]
[1727163737282,1.98773875,2645.1,2645.0,5.91861078]
[1727163739191,1.98773875,2645.1,2645.0,5.52751389]
[1727163740993,1.98773875,2645.1,2645.0,5.91858939]
[1727163742791,0.4618856,2645.3,2645.2,3.78043]
[1727163751136,0.4618856,2645.3,2645.2,4.71121539]
[1727163751499,2.44960739,2645.3,2645.2,4.71121539]
[1727163753404,2.44960739,2645.3,2645.2,3.78043]
[1727163755937,0.4618856,2645.3,2645.2,4.53873]
[1727163756098,2.05169997,2645.3,2645.2,4.61432687]
[1727163756304,2.05169997,2645.3,2645.2,4.53873]
[1727163756502,2.05169997,2645.3,2645.2,5.60966428]
[1727163756710,2.05169997,2645.3,2645.2,5.68526188]
[1727163757635,0.79434762,2645.7,2645.5,7.5383]
[1727163757839,1.58704306,2645.9,2645.8,3.77957]
[1727163757840,0.79434762,2645.9,2645.8,3.77957]
[1727163758054,0.79434762,2646.1,2645.9,3.77943]
[1727163758216,0.79412566,2646.1,2646.0,6.06054306]
[1727163758410,0.79412566,2646.2,2646.0,6.06054306]
[1727163758611,0.79412566,2646.3,2646.1,3.77914]
[1727163758813,0.79412566,2646.4,2646.3,3.77886]
[1727163759067,0.79412566,2646.4,2646.3,5.89872263]
[1727163759210,0.79412566,2646.5,2646.3,5.89872263]
[1727163759410,0.79412566,2646.6,2646.5,3.77857]
[1727163760543,1.19204735,2646.7,2646.5,3.77857]
[1727163760544,0.79412566,2646.7,2646.6,3.77843]
[1727163761433,0.79412566,2646.8,2646.7,3.77828]
[1727163763353,0.79412566,2646.8,2646.7,4.67868989]
[1727163764617,0.8228,2647.1,2646.8,3.77801]
[1727163766066,0.8228,2647.1,2646.9,3.77793]
[1727163769923,0.8228,2647.1,2646.7,4.67865989]
[1727163770640,0.8228,2647.1,2646.7,8.45685989]
[1727163771052,0.8228,2647.1,2646.7,8.45680989]
[1727163771263,0.8228,2647.1,2646.8,3.77812]
[1727163772670,0.8228,2647.1,2646.7,4.67860989]
[1727163773258,0.8228,2647.1,2646.7,3.7782]
[1727163774735,0.8228,2647.1,2646.5,3.77852]
[1727163774938,0.8187,2647.0,2646.6,3.77841]
[1727163775264,0.8187,2647.0,2646.5,7.55701]
[1727163775934,4.59657,2647.0,2646.5,3.77849]
[1727163777076,0.8187,2647.0,2646.6,3.7784]
[1727163777831,0.8187,2647.0,2646.4,5.2260689]
[1727163778037,5.38523846,2647.0,2646.4,9.0046589]
[1727163778458,5.38523846,2647.0,2646.5,3.77855]
[1727163779472,0.8187,2646.9,2646.4,5.2259789]
[1727163779672,4.59671,2646.9,2646.4,3.77859]
[1727163780142,4.59671,2646.9,2646.4,7.55722]
[1727163780578,4.59671,2646.9,2646.4,3.77859]
[1727163780936,0.7506,2646.8,2646.4,7.55723]
[1727163781274,0.7506,2646.8,2646.4,8.45769189]
[1727163781476,0.7506,2646.8,2646.5,3.77857]
[1727163781845,0.7506,2646.8,2646.4,4.67905189]
[1727163782069,0.7506,2646.8,2646.4,8.45766189]
[1727163782286,0.7506,2646.8,2646.4,4.67905189]
[1727163783469,0.7506,2646.8,2646.5,3.77856]
[1727163793190,1.53925846,2646.8,2646.5,3.77856]
[1727163795505,0.78865846,2646.7,2646.5,3.77856]
[1727163796128,0.78865846,2646.7,2646.4,3.77859]
[1727163796336,0.7506,2646.6,2646.3,3.77878]
[1727163796539,0.78865846,2646.5,2646.3,3.77878]
[1727163796740,0.78865846,2646.5,2646.0,5.2265689]
[1727163796946,0.7506,2646.3,2645.7,0.8307]
[1727163797144,0.78865846,2646.2,2645.8,3.77949]
[1727163797448,0.78865846,2646.0,2645.8,3.77949]
[1727163798032,0.78865846,2646.0,2645.9,3.77943]
[1727163798236,0.78865846,2646.0,2645.8,5.2269489]
[1727163798545,0.78865846,2646.1,2645.9,3.77932]
[1727163799446,0.78865846,2646.0,2645.9,3.77932]
[1727163801433,1.1829877,2646.1,2645.9,3.77932]
[1727163801609,1.1829877,2646.1,2646.0,5.2266689]
[1727163802562,1.57731693,2646.1,2646.0,5.2266689]
[1727163803346,1.57731693,2646.2,2646.1,3.77914]
[1727163803669,1.98066411,2646.2,2646.1,3.77914]
[1727163804835,1.58600991,2646.2,2646.1,3.77914]
[1727163805236,1.58600991,2646.2,2646.0,3.77927]
[1727163806370,1.18931551,2646.1,2646.0,3.77927]
[1727163812389,1.58600991,2646.2,2646.0,3.77927]
[1727163812560,1.18910286,2646.1,2646.0,3.77927]
[1727163812764,1.18910286,2646.1,2645.9,3.77932]
[1727163813083,1.18910286,2646.0,2645.9,7.55865]
[1727163813262,1.18910286,2646.0,2645.9,8.20813497]
[1727163814161,1.18910286,2646.0,2645.9,4.42880497]
[1727163814551,1.18910286,2646.1,2645.9,4.42880497]
[1727163814749,1.18910286,2646.0,2645.9,3.77932]
[1727163818252,2.7324958,2646.3,2645.9,3.77932]
[1727163818253,1.18910286,2646.2,2646.0,3.77928]
[1727163818489,1.58600991,2646.3,2646.2,4.5636]
[1727163818695,1.58600991,2646.3,2646.2,6.0109889]
[1727163818889,1.9818958,2646.4,2646.2,6.0109889]
[1727163818890,1.58600991,2646.4,2646.3,3.77886]
[1727163819095,1.9818958,2646.5,2646.3,3.77886]
[1727163819395,1.58567437,2646.4,2646.3,3.77886]
[1727163819756,1.58567437,2646.4,2646.2,9.7899889]
[1727163819957,1.58567437,2646.3,2646.2,6.0109889]
[1727163821859,1.58567437,2646.3,2646.2,4.5636]
[1727163824278,1.58567437,2646.3,2646.2,5.54261189]
[1727163824984,1.58567437,2646.3,2646.2,4.75801189]
[1727163826855,1.58567437,2646.3,2646.2,0.97901189]
[1727163827059,1.58567437,2646.3,2646.1,7.55826]
[1727163827284,1.58567437,2646.3,2646.1,3.77913]
[1727163827285,1.1897306,2646.2,2646.1,3.77913]
[1727163827683,1.58567437,2646.3,2646.1,7.5582]
[1727163827886,1.58567437,2646.2,2646.1,3.77907]
[1727163828792,1.58567437,2646.3,2646.1,3.77907]
[1727163829401,1.58567437,2646.2,2646.1,3.77907]
[1727163837179,1.98407941,2646.3,2646.1,3.77907]
[1727163837609,1.98407941,2646.3,2646.2,3.779]
[1727163839177,2.38089529,2646.5,2646.2,3.779]
[1727163839517,1.98499811,2646.3,2646.2,3.779]
[1727163839931,2.38089529,2646.5,2646.2,3.779]
[1727163840527,2.38232532,2646.5,2646.1,3.77914]
[1727163840732,1.98526653,2646.2,2646.1,3.77914]
[1727163840940,1.98526653,2646.2,2646.1,4.75781089]
[1727163842500,2.38232532,2646.4,2646.0,5.2266589]
[1727163842723,1.98610255,2646.1,2646.0,5.2266589]
[1727163843233,1.98610255,2646.2,2646.0,9.0059289]
[1727163843397,1.98610255,2646.1,2646.0,5.2266589]
[1727163844294,1.98623083,2646.1,2646.0,9.0058689]
[1727163844632,1.98623083,2646.1,2646.0,6.20608579]
[1727163846922,1.98623083,2646.1,2645.9,3.77936]
[1727163847112,1.98623083,2646.0,2645.8,3.77957]
[1727163847318,1.58910981,2645.9,2645.7,5.2270089]
[1727163847643,1.58910981,2645.8,2645.7,5.2270089]
[1727163847834,1.58910981,2645.8,2645.7,6.12770079]
[1727163848450,1.98623083,2645.9,2645.7,6.99228202]
[1727163848451,1.19182228,2645.9,2645.7,6.99228202]
[1727163848603,1.19182228,2645.9,2645.8,4.56857]
[1727163848813,1.19182228,2646.0,2645.8,4.64415219]
[1727163849008,1.19182228,2646.0,2645.9,5.2268189]
[1727163849204,1.19182228,2646.0,2645.9,6.75752873]
[1727163849410,1.19182228,2646.0,2645.9,7.54652873]
[1727163849727,1.58910981,2646.2,2646.1,0.789]
[1727163849940,1.58910981,2646.2,2646.1,2.2363889]
[1727163850752,1.58910981,2646.2,2646.1,6.0155289]
[1727163851069,1.58910981,2646.2,2646.1,7.58102301]
[1727163855130,1.58863159,2646.2,2646.1,7.97153183]
[1727163855539,1.98613082,2646.4,2646.2,3.779]
[1727163855759,1.98613082,2646.4,2646.3,5.2262489]
[1727163856167,1.98613082,2646.5,2646.4,3.77871]
[1727163856355,1.98613082,2646.5,2646.4,6.12659479]
[1727163857579,1.98613082,2646.6,2646.5,3.77857]
[1727163858649,3.16445699,2646.8,2646.4,6.12659479]
[1727163858851,0.7811,2646.8,2646.4,6.12659479]
[1727163859181,1.98505241,2646.5,2646.4,6.12659479]
[1727163860177,1.58797705,2646.5,2646.4,6.99116243]
[1727163861240,1.58797705,2646.6,2646.5,3.77857]
[1727163861473,1.58797705,2646.6,2646.5,6.68081614]
[1727163866039,1.58797705,2646.6,2646.5,6.75637973]
[1727163866254,1.58797705,2646.6,2646.5,6.68081614]
[1727163867241,1.98505241,2646.8,2646.6,3.77843]
[1727163867458,1.58689038,2646.7,2646.6,3.77843]
[1727163867643,1.98505241,2646.8,2646.7,3.77828]
[1727163870347,0.7811,2647.0,2646.7,3.77828]
[1727163870348,1.98505241,2646.9,2646.7,3.77828]
[1727163871581,1.58634182,2646.8,2646.7,3.77828]
[1727163872595,1.58634182,2646.8,2646.6,4.84779648]
[1727163872757,0.7811,2647.0,2646.2,3.77892]
[1727163872758,2.77805241,2646.7,2646.2,3.77892]
[1727163873081,0.79318771,2646.3,2646.2,3.77888]
[1727163873281,1.18978157,2646.3,2646.2,5.2262689]
[1727163873512,0.79319992,2646.3,2646.2,5.2262689]
[1727163873686,0.79319992,2646.3,2646.2,6.20540979]
[1727163873980,1.98278157,2646.4,2646.3,3.77886]
[1727163876063,1.98283832,2646.4,2646.3,3.77886]
[1727163877625,0.793,2646.4,2646.3,3.77886]
[1727163879117,0.793,2646.4,2646.1,1.4473889]
[1727163879287,0.793,2646.4,2645.8,0.786]
[1727163879288,2.37964239,2646.4,2646.2,3.779]
[1727163879832,1.58664239,2646.3,2646.2,3.779]
[1727163889954,1.19016015,2646.4,2646.3,3.77886]
[1727163890129,1.19016015,2646.4,2646.3,5.2262489]
[1727163890325,1.19016015,2646.5,2646.4,4.55141]
[1727163890537,0.793387,2646.5,2646.4,6.07436245]
[1727163891343,0.793387,2646.5,2646.4,5.9987989]
[1727163893021,0.793387,2646.5,2646.4,6.07436217]
[1727163893322,0.793387,2646.5,2646.4,7.15746388]
[1727163894244,0.79354944,2646.5,2646.4,7.15746388]
[1727163894963,0.79354944,2646.5,2646.4,7.54789045]
[1727163897424,0.79354944,2646.6,2646.5,3.77857]
[1727163900272,1.19016015,2646.7,2646.5,3.77857]
[1727163900580,1.19016015,2646.7,2646.6,6.31186596]
[1727163901332,1.19016015,2646.8,2646.7,3.77828]
[1727163902567,1.58664239,2646.9,2646.8,3.77814]
[1727163902778,1.58664239,2646.9,2646.8,5.2255289]
[1727163903349,1.58664239,2646.9,2646.8,6.2345145]
[1727163908858,1.18946404,2646.9,2646.8,6.2345145]
[1727163909392,1.58664239,2647.1,2646.9,3.778]
[1727163909605,1.58664239,2647.1,2647.0,1.4473889]
[1727163910066,1.58664239,2647.2,2647.1,3.77771]
[1727163910262,1.58664239,2647.2,2647.1,5.05580589]
[1727163910473,1.18922712,2647.2,2647.1,5.05580589]
[1727163912174,0.79248823,2647.2,2647.1,5.05580589]
[1727163912507,1.18752271,2647.3,2647.2,3.77757]
[1727163912707,1.18752271,2647.3,2647.2,5.2249589]
[1727163913380,1.18752271,2647.3,2647.2,6.25303538]
[1727163916207,0.39503448,2647.3,2647.2,6.25303538]
[1727163918510,0.39503448,2647.3,2647.2,7.04813538]
[1727163920312,0.39503448,2647.3,2647.2,7.12367883]
[1727163920485,0.39503448,2647.3,2647.2,8.20921562]
[1727163920688,0.0366912,2647.7,2647.6,3.777]
[1727163920885,0.0366912,2647.7,2647.6,5.9798019]
[1727163921208,0.0366912,2647.7,2647.6,6.05533334]
[1727163922379,0.0366912,2647.7,2647.6,6.85043334]
[1727163922685,0.0366912,2647.7,2647.6,7.40043334]
[1727163923911,0.0366912,2647.7,2647.6,10.40043334]
[1727163924207,0.0366912,2647.7,2647.6,10.3249019]
[1727163924774,0.0378243,2648.5,2647.7,3.55]
[1727163925008,0.0378243,2648.5,2647.6,50.5251439]
[1727163925009,0.0378243,2648.5,2648.4,5.2232489]
[1727163925522,0.0378243,2648.5,2648.4,6.64384767]
[1727163927994,0.0378243,2648.5,2648.4,9.64384767]
[1727163928333,0.0378243,2648.5,2648.4,9.5683489]
[1727163928487,0.0378243,2648.5,2648.4,11.28038379]
[1727163949569,0.0378243,2648.5,2648.4,41.99255579]
[1727163949774,0.0378243,2648.5,2648.4,41.11827179]
[1727163950075,0.0378243,2648.5,2648.4,37.83092879]
[1727163951281,0.0378243,2648.5,2648.4,35.65531179]
[1727163951641,0.0378243,2648.5,2648.4,33.67705079]
[1727163952335,0.0378243,2648.5,2648.4,27.84110479]
[1727163952847,0.038,2649.0,2648.9,4.55295]
[1727163953051,0.038,2649.0,2648.9,6.07582639]
[1727163953886,0.038,2649.0,2648.9,9.62582639]
[1727163954101,0.038,2649.0,2648.9,9.5503389]
[1727163956272,0.0378243,2649.2,2649.1,4.55266]
[1727163956451,0.0378243,2649.2,2649.1,12.79702512]
[1727163956655,68.7772243,2650.0,2649.8,3.77386]
[1727163956964,68.7772243,2650.0,2649.9,5.2211089]
[1727163958788,68.7772243,2650.0,2649.9,1.4473889]
[1727163958949,69.5623243,2650.0,2649.8,3.77386]
[1727163961891,69.5623243,2650.0,2649.7,5.2213589]
[1727163962876,69.5623243,2650.0,2649.7,3.77392]
[1727163963666,69.5623243,2650.0,2649.7,5.2213089]
[1727163963865,69.5623243,2650.0,2649.9,1.4473889]
[1727163964071,69.5623243,2650.0,2649.9,5.2211089]
[1727163965175,68.7772243,2650.0,2649.9,6.12060479]
[1727163966207,68.7772243,2650.0,2649.9,6.19607222]
[1727163966665,68.7772243,2650.0,2649.9,6.12060479]
[1727163968206,68.7772243,2650.0,2649.9,6.67060479]
[1727163968768,68.7772243,2650.0,2649.9,6.74606833]
[1727163969169,68.7772243,2650.0,2649.9,10.57866833]
[1727163969376,68.7772243,2650.0,2649.9,10.50320479]
[1727163970274,48.2368855,2650.0,2649.9,12.17786604]
[1727163970470,37.45100246,2650.0,2649.9,56.03525521]
[1727163970711,0.0378243,2650.8,2650.7,4.32258]
[1727163970881,0.0378243,2650.8,2650.7,14.3992803]
[1727163971084,0.0378243,2650.8,2650.7,44.4669903]
[1727163971313,0.0378243,2650.8,2650.7,34.78383715]
[1727163971506,0.0378243,2650.8,2650.7,28.30660515]
[1727163971707,0.0378243,2650.8,2650.7,11.27723015]
[1727163972140,0.0378243,2650.8,2650.7,10.44463015]
[1727163972723,0.0378243,2650.8,2650.7,3.77258]
[1727163973653,0.0378243,2650.8,2650.7,6.89463015]
[1727163974019,0.0378243,2650.8,2650.7,8.48114431]
[1727163976658,0.0378243,2650.8,2650.7,5.35909416]
[1727163977211,0.0378243,2650.8,2650.7,3.77258]
[1727163979559,0.7884,2650.7,2650.6,3.77273]
[1727163980659,0.0378243,2650.8,2650.7,3.77258]
[1727163981018,0.0378243,2650.8,2650.7,6.89463015]
[1727163981220,0.0378243,2650.8,2650.7,8.12760883]
[1727163981415,0.0378243,2650.8,2650.7,8.0521701]
[1727163981728,0.0378243,2650.8,2650.7,11.76942041]
[1727163982061,0.0378243,2650.8,2650.7,12.60202041]
[1727163982580,0.0378243,2650.8,2650.7,15.60202041]
[1727163985355,0.0378243,2650.8,2650.7,14.6049771]
[1727163986214,0.0378243,2650.8,2650.7,15.06648362]
[1727163987517,0.0378243,2650.8,2650.7,15.60202041]
[1727163988059,0.0378243,2650.8,2650.7,15.06648362]
[1727163988957,0.0378243,2650.8,2650.7,15.60202041]
[1727163992970,0.0378243,2651.6,2651.5,3.77145]
[1727163993447,0.0378243,2651.6,2651.5,3.84686733]
[1727163994063,0.7699,2651.9,2651.5,0.07541733]
[1727163994364,0.816244,2651.9,2651.8,3.77102]
[1727163994664,0.816244,2651.9,2651.6,3.77127]
[1727163994665,0.816244,2651.9,2651.7,3.84656537]
[1727163994856,0.816244,2651.9,2651.6,3.77128]
[1727163995284,0.816244,2651.9,2651.7,3.77108]
[1727163996261,0.816244,2651.9,2651.7,3.84649552]
[1727163996644,0.816244,2651.9,2651.7,3.77108]
[1727163996846,0.816244,2651.9,2651.6,3.84669558]
[1727163997057,0.816244,2651.9,2651.6,7.54245]
[1727163997278,0.816244,2651.9,2651.6,3.77122]
[1727163998096,0.816244,2651.9,2651.6,7.54245]
[1727163998395,0.816244,2651.9,2651.6,3.77122]
[1727163998600,0.816244,2651.9,2651.6,7.54242]
[1727163999295,0.7699,2651.7,2651.3,3.77165]
[1727163999602,0.7699,2651.7,2651.3,7.5433]
[1727163999888,0.7699,2651.7,2651.3,3.77165]
[1727164001597,0.7699,2651.7,2651.2,3.77185]